fUSD/lending_fUSD_20250520
["ID","MTS","AMOUNT","RATE_DAILY","PERIOD"]
[361763716,1747770632552,-2693.46745052,0.00028,2]
[361763717,1747770632562,-1727.9,0.00028,10]
[361763718,1747770632572,-240.23254948,0.00028,2]
[361763720,1747770632587,-1635.24745052,0.00028,2]
[361763722,1747770632596,-999.99,0.00028,2]
[361763724,1747770632606,-2703.84,0.00028,5]
[361763726,1747770632615,-9999.99,0.00028,2]
[361763728,1747770632626,-3333.33333,0.00028976,2]
[361763730,1747770632635,-151.8,0.00029,2]
[361763731,1747770632645,-581.1869955,0.00029,30]
[361763733,1747770632656,-250.0,0.00029899,2]
[361763735,1747770632667,-208.3,0.00029899,2]
[361763737,1747770632677,-175.75,0.00029899,120]
[361763739,1747770632686,-150.0,0.00029899,2]
[361763740,1747770632696,-1800.0,0.0003,31]
[361763742,1747770632706,-720.05,0.00030467,2]
[361763744,1747770632715,-200.0,0.00030636,2]
[361763746,1747770632725,-1764.59,0.0003068,2]
[361763748,1747770632735,-426.81,0.00030795,2]
[361763750,1747770632744,-1000.0,0.000308,2]
[361763752,1747770632754,-923.001,0.00030947,2]
[361763753,1747770632765,-508.001,0.00030947,2]
[361763755,1747770632775,-415.203,0.00030947,2]
[361763757,1747770632785,-899.553,0.00030947,2]
[361763759,1747770632795,-3362.718,0.00030947,2]
[361763761,1747770632805,-154.0,0.00030947,2]
[361763763,1747770632814,-1150.0,0.00030947,2]
[361763764,1747770632824,-4526.602,0.00030947,2]
[361763766,1747770632834,-1800.0,0.00031,32]
[361763768,1747770632844,-213.0,0.00031148,2]
[361763770,1747770632854,-1800.0,0.00032,33]
[361763772,1747770632864,-1000.0,0.000326,7]
[361763774,1747770632874,-3890.32,0.0003269,120]
[361763776,1747770632884,-1000.0,0.00032692,2]
[361763778,1747770632893,-509.04317648,0.00032776,2]
[361763780,1747770632905,-977.04194775,0.00032776,2]
[361763782,1747770632915,-284.04,0.00032785,2]
[361763784,1747770632925,-160.48,0.00032831,2]
[361763786,1747770632935,-321.77,0.00032875,2]
[361763787,1747770632944,-300.0,0.00032876,7]
[361763789,1747770632954,-432.3887144,0.00032876,5]
[361763793,1747770632967,-50.8712856,0.00032876,5]
[361763795,1747770632976,-420.0,0.00032876,5]
[361763797,1747770632986,-175.27666678,0.00032876,5]
[361763799,1747770632998,-756.54370267,0.00032876,5]
[361763805,1747770633034,-385.21963055,0.00032876,5]
[361763807,1747770633044,-420.0,0.00032876,5]
[361763809,1747770633054,-298.0977313,0.00032876,5]
[361763811,1747770633067,-121.9022687,0.00032876,5]
[361763813,1747770633078,-420.0,0.00032876,5]
[361763815,1747770633088,-283.9603962,0.00032876,5]
[361763817,1747770633098,-420.0,0.00032876,5]
[361763819,1747770633108,-9.12636634,0.00032876,5]
[361763821,1747770633121,-410.87363366,0.00032876,5]
[361763823,1747770633130,-420.0,0.00032876,5]
[361763825,1747770633142,-443.74,0.00032876,5]
[361763827,1747770633152,-420.0,0.00032876,5]
[361763829,1747770633163,-420.0,0.00032876,5]
[361763831,1747770633173,-677.63189816,0.00032876,5]
[361763833,1747770633185,-6.03810184,0.00032876,5]
[361763835,1747770633195,-291.93753511,0.00032876,5]
[361763838,1747770633223,-363.93246489,0.00032876,5]
[361763840,1747770633233,-420.0,0.00032876,5]
[361763842,1747770633243,-233.95596645,0.00032876,5]
[361763844,1747770633264,-186.04403355,0.00032876,5]
[361763846,1747770633274,-883.21,0.00032876,5]
[361763848,1747770633285,-420.0,0.00032876,5]
[361763850,1747770633295,-420.0,0.00032876,5]
[361763852,1747770633305,-420.0,0.00032876,5]
[361763854,1747770633314,-420.0,0.00032876,5]
[361763856,1747770633325,-784.24,0.00032876,5]
[361763858,1747770633334,-420.0,0.00032876,5]
[361763859,1747770633345,-420.0,0.00032876,5]
[361763861,1747770633354,-420.0,0.00032876,5]
[361763863,1747770633364,-420.0,0.00032876,5]
[361763865,1747770633375,-420.0,0.00032876,5]
[361763867,1747770633385,-420.0,0.00032876,5]
[361763869,1747770633395,-420.0,0.00032876,5]
[361763872,1747770633405,-420.0,0.00032876,5]
[361763875,1747770633415,-420.0,0.00032876,5]
[361763878,1747770633425,-420.0,0.00032876,5]
[361763881,1747770633435,-456.41,0.00032876,5]
[361763883,1747770633445,-420.0,0.00032876,5]
[361763884,1747770633456,-463.76,0.00032876,5]
[361763886,1747770633466,-400.0,0.00032876,5]
[361763888,1747770633476,-653.49,0.00032876,5]
[361763890,1747770633487,-420.0,0.00032876,5]
[361763892,1747770633498,-420.0,0.00032876,5]
[361763894,1747770633508,-420.0,0.00032876,5]
[361763896,1747770633519,-420.0,0.00032876,5]
[361763898,1747770633529,-420.0,0.00032876,5]
[361763900,1747770633540,-2039.47,0.00032876,5]
[361763902,1747770633551,-434.48,0.00032876,5]
[361763904,1747770633561,-1088.89,0.00032876,5]
[361763905,1747770633572,-420.0,0.00032876,5]
[361763907,1747770633585,-420.0,0.00032876,5]
[361763909,1747770633596,-400.0,0.00032876,5]
[361763911,1747770633606,-400.0,0.00032876,5]
[361763913,1747770633617,-400.0,0.00032876,5]
[361763915,1747770633627,-420.0,0.00032876,5]
[361763917,1747770633637,-1349.28,0.00032876,5]
[361763919,1747770633647,-798.76,0.00032876,5]
[361763921,1747770633660,-420.0,0.00032876,5]
[361763923,1747770633670,-420.0,0.00032876,5]
[361763925,1747770633680,-420.0,0.00032876,5]
[361763926,1747770633690,-437.21,0.00032876,5]
[361763928,1747770633700,-805.86,0.00032876,5]
[361763930,1747770633711,-420.0,0.00032876,5]
[361763932,1747770633721,-420.0,0.00032876,2]
[361763934,1747770633732,-764.3,0.00032876,5]
[361763936,1747770633743,-540.81,0.00032876,5]
[361763938,1747770633753,-420.0,0.00032876,5]
[361763940,1747770633764,-420.0,0.00032876,5]
[361763942,1747770633774,-444.92,0.00032876,5]
[361763944,1747770633785,-420.0,0.00032876,5]
[361763946,1747770633794,-641.85,0.00032876,5]
[361763948,1747770633804,-400.0,0.00032876,5]
[361763950,1747770633813,-500.0,0.00032876,5]
[361763951,1747770633824,-420.0,0.00032876,5]
[361763953,1747770633834,-754.56,0.00032876,5]
[361763955,1747770633843,-361.34092261,0.00032876,5]
[361763957,1747770633853,-420.0,0.00032876,5]
[361763959,1747770633862,-688.93,0.00032876,5]
[361763960,1747770633872,-420.0,0.00032876,5]
[361763962,1747770633882,-420.0,0.00032876,5]
[361763964,1747770633892,-401.54267945,0.00032876,5]
[361763966,1747770633903,-420.0,0.00032876,5]
[361763968,1747770633913,-973.51,0.00032876,5]
[361763970,1747770633924,-420.0,0.00032876,5]
[361763972,1747770633934,-420.0,0.00032876,5]
[361763973,1747770633945,-420.0,0.00032876,5]
[361763975,1747770633956,-420.0,0.00032876,5]
[361763977,1747770633966,-637.29,0.00032876,5]
[361763979,1747770633976,-420.0,0.00032876,5]
[361763981,1747770633987,-420.0,0.00032876,5]
[361763983,1747770633996,-400.0,0.00032876,5]
[361763985,1747770634006,-400.0,0.00032876,5]
[361763987,1747770634016,-400.0,0.00032876,5]
[361763989,1747770634026,-420.0,0.00032876,5]
[361763991,1747770634037,-400.43099107,0.00032876,5]
[361763992,1747770634047,-400.0,0.00032876,5]
[361763994,1747770634057,-400.47627158,0.00032876,5]
[361763996,1747770634068,-400.0,0.00032876,5]
[361763998,1747770634078,-400.0,0.00032876,5]
[361764000,1747770634090,-420.0,0.00032876,5]
[361764002,1747770634100,-400.0,0.00032876,5]
[361764004,1747770634112,-466.20876886,0.00032876,5]
[361764006,1747770634122,-517.06643452,0.00032876,5]
[361764008,1747770634133,-400.0,0.00032876,5]
[361764010,1747770634142,-192.72,0.00032876,5]
[361764012,1747770634152,-400.0,0.00032876,5]
[361764014,1747770634162,-420.0,0.00032876,5]
[361764016,1747770634172,-400.0,0.00032876,5]
[361764017,1747770634182,-420.0,0.00032876,5]
[361764019,1747770634193,-400.0,0.00032876,5]
[361764021,1747770634204,-400.0,0.00032876,5]
[361764023,1747770634215,-420.0,0.00032876,5]
[361764025,1747770634224,-400.0,0.00032876,5]
[361764027,1747770634234,-400.0,0.00032876,5]
[361764029,1747770634243,-400.0,0.00032876,5]
[361764031,1747770634254,-400.0,0.00032876,5]
[361764033,1747770634263,-420.0,0.00032876,5]
[361764035,1747770634273,-420.0,0.00032876,5]
[361764037,1747770634284,-400.0,0.00032876,5]
[361764038,1747770634295,-400.0,0.00032876,5]
[361764040,1747770634305,-400.0,0.00032876,5]
[361764042,1747770634315,-401.4969301,0.00032876,5]
[361764044,1747770634327,-400.0,0.00032876,5]
[361764046,1747770634336,-420.0,0.00032876,5]
[361764048,1747770634346,-420.0,0.00032876,5]
[361764050,1747770634356,-400.0,0.00032876,5]
[361764052,1747770634366,-420.0,0.00032876,5]
[361764054,1747770634375,-420.0,0.00032876,5]
[361764056,1747770634385,-420.0,0.00032876,5]
[361764058,1747770634395,-212.25420687,0.000329,27]
[361764059,1747770634404,-1500.0,0.00032902,2]
[361764061,1747770634415,-1800.0,0.00033,34]
[361764063,1747770634425,-500.0,0.00033,7]
[361764065,1747770634435,-426.81,0.00033059,2]
[361764067,1747770634444,-1373.73,0.00033069,120]
[361764069,1747770634454,-162.23,0.00033139,2]
[361764071,1747770634464,-1332.26,0.00033139,2]
[361764073,1747770634474,-23649.2717283,0.0003314,2]
[361764093,1747770634870,-420.0,0.00033148,5]
[361764095,1747770634889,-420.0,0.00033148,5]
[361764097,1747770634900,-151.81802364,0.00033148,2]
[361764099,1747770634909,-420.0,0.00033148,5]
[361764102,1747770634920,-2915.16,0.00033148,5]
[361764104,1747770634929,-420.0,0.00033148,2]
[361764106,1747770634940,-420.0,0.00033148,2]
[361764108,1747770634950,-420.0,0.00033148,5]
[361764110,1747770634959,-534.67199712,0.00033148,5]
[361764112,1747770634969,-654.15,0.00033148,5]
[361764114,1747770634979,-420.0,0.00033148,2]
[361764116,1747770634989,-420.0,0.00033148,5]
[361764118,1747770635000,-420.0,0.00033148,5]
[361764120,1747770635010,-420.0,0.00033148,5]
[361764122,1747770635020,-400.0,0.00033148,5]
[361764124,1747770635030,-606.14,0.00033148,5]
[361764126,1747770635040,-420.0,0.00033148,5]
[361764128,1747770635050,-420.0,0.00033148,5]
[361764130,1747770635060,-667.94,0.00033148,5]
[361764132,1747770635069,-420.0,0.00033148,5]
[361764134,1747770635078,-281.94286598,0.00033149,5]
[361764136,1747770635089,-400.0,0.00033149,5]
[361764138,1747770635099,-420.0,0.00033149,5]
[361764140,1747770635109,-349.69634285,0.00033149,5]
[361764142,1747770635119,-400.0,0.00033149,5]
[361764144,1747770635129,-269.94127972,0.00033149,5]
[361764146,1747770635138,-420.0,0.00033149,5]
[361764148,1747770635148,-420.0,0.00033149,5]
[361764150,1747770635158,-400.0,0.00033149,5]
[361764152,1747770635167,-420.0,0.00033149,5]
[361764154,1747770635177,-420.0,0.00033149,5]
[361764156,1747770635187,-420.0,0.00033149,5]
[361764158,1747770635197,-420.0,0.00033149,5]
[361764160,1747770635207,-400.0,0.00033149,5]
[361764162,1747770635216,-402.12700308,0.00033149,5]
[361764164,1747770635226,-420.0,0.00033149,5]
[361764166,1747770635236,-420.0,0.00033149,5]
[361764168,1747770635245,-420.0,0.00033149,5]
[361764170,1747770635255,-400.0,0.00033149,5]
[361764172,1747770635265,-400.0,0.00033149,5]
[361764174,1747770635274,-420.0,0.00033149,5]
[361764176,1747770635283,-420.0,0.00033149,5]
[361764178,1747770635293,-622.52,0.00033149,5]
[361764180,1747770635304,-420.0,0.00033149,5]
[361764182,1747770635314,-464.35767529,0.00033149,5]
[361764184,1747770635324,-286.83344547,0.00033149,5]
[361764186,1747770635334,-420.0,0.00033149,5]
[361764188,1747770635344,-420.0,0.00033149,5]
[361764190,1747770635354,-420.0,0.00033149,5]
[361764192,1747770635363,-420.0,0.00033149,5]
[361764194,1747770635373,-420.0,0.00033149,5]
[361764196,1747770635383,-420.0,0.00033149,5]
[361764198,1747770635392,-420.0,0.00033149,5]
[361764200,1747770635402,-554.55,0.00033149,5]
[361764202,1747770635411,-420.0,0.00033149,5]
[361764204,1747770635421,-420.0,0.00033149,5]
[361764206,1747770635430,-420.0,0.00033149,5]
[361764208,1747770635440,-420.0,0.00033149,5]
[361764211,1747770635451,-400.0,0.00033149,5]
[361764213,1747770635460,-420.0,0.00033149,5]
[361764215,1747770635471,-466.9,0.00033149,5]
[361764217,1747770635480,-420.0,0.00033149,5]
[361764219,1747770635490,-420.0,0.00033149,5]
[361764221,1747770635500,-420.0,0.00033149,5]
[361764223,1747770635510,-420.0,0.00033149,5]
[361764225,1747770635519,-420.0,0.00033149,5]
[361764227,1747770635529,-420.0,0.00033149,5]
[361764229,1747770635539,-420.0,0.00033149,5]
[361764231,1747770635548,-420.0,0.00033149,5]
[361764233,1747770635558,-420.0,0.00033149,5]
[361764235,1747770635567,-420.0,0.00033149,5]
[361764237,1747770635578,-420.0,0.00033149,5]
[361764239,1747770635590,-420.0,0.00033149,5]
[361764241,1747770635600,-420.0,0.00033149,5]
[361764243,1747770635609,-420.0,0.00033149,5]
[361764245,1747770635619,-742.9,0.00033149,5]
[361764247,1747770635630,-542.09146549,0.00033149,5]
[361764249,1747770635639,-420.0,0.00033149,5]
[361764251,1747770635649,-501.14559536,0.00033149,5]
[361764253,1747770635659,-400.0,0.00033149,5]
[361764255,1747770635669,-420.0,0.00033149,5]
[361764257,1747770635679,-420.0,0.00033149,5]
[361764259,1747770635689,-420.0,0.00033149,5]
[361764261,1747770635699,-400.0,0.00033149,5]
[361764263,1747770635708,-624.6,0.00033149,5]
[361764265,1747770635719,-400.0,0.00033149,5]
[361764267,1747770635729,-420.0,0.00033149,5]
[361764269,1747770635738,-417.97846094,0.00033149,5]
[361764271,1747770635748,-420.0,0.00033149,5]
[361764273,1747770635758,-420.0,0.00033149,5]
[361764275,1747770635768,-420.0,0.00033149,5]
[361764277,1747770635782,-400.0,0.00033149,5]
[361764279,1747770635791,-400.0,0.00033149,5]
[361764281,1747770635800,-980.58,0.00033149,5]
[361764283,1747770635811,-250.0,0.00033149,5]
[361764285,1747770635821,-420.0,0.00033149,5]
[361764287,1747770635830,-470.0,0.00033149,5]
[361764289,1747770635839,-517.87507153,0.00033149,5]
[361764291,1747770635850,-400.0,0.00033149,5]
[361764293,1747770635859,-400.0,0.00033149,5]
[361764295,1747770635869,-420.0,0.00033149,5]
[361764297,1747770635879,-420.0,0.00033149,5]
[361764299,1747770635891,-420.0,0.00033149,5]
[361764301,1747770635901,-420.0,0.00033149,5]
[361764303,1747770635911,-420.0,0.00033149,5]
[361764305,1747770635922,-420.0,0.00033149,5]
[361764307,1747770635931,-420.0,0.00033149,5]
[361764309,1747770635941,-400.0,0.00033149,5]
[361764311,1747770635951,-420.0,0.00033149,5]
[361764313,1747770635961,-420.0,0.00033149,5]
[361764316,1747770635971,-400.0,0.00033149,5]
[361764318,1747770635980,-420.0,0.00033149,5]
[361764320,1747770635990,-420.0,0.00033149,5]
[361764322,1747770636000,-500.0,0.00033149,5]
[361764324,1747770636010,-449.99,0.00033149,5]
[361764326,1747770636021,-500.0,0.00033149,7]
[361764328,1747770636031,-176.42219734,0.00033149,7]
[361764330,1747770636041,-500.0,0.00033149,7]
[361764332,1747770636051,-500.0,0.00033149,7]
[361764334,1747770636061,-500.0,0.00033149,7]
[361764336,1747770636076,-500.0,0.00033149,7]
[361764338,1747770636086,-520.41632732,0.00033149,7]
[361764340,1747770636098,-500.0,0.00033149,7]
[361764342,1747770636108,-500.0,0.00033149,7]
[361764344,1747770636118,-500.0,0.00033149,7]
[361764346,1747770636129,-500.0,0.00033149,7]
[361764348,1747770636139,-250.35932402,0.00033149,7]
[361764350,1747770636149,-500.0,0.00033149,7]
[361764352,1747770636159,-500.0,0.00033149,7]
[361764354,1747770636168,-500.0,0.00033149,7]
[361764356,1747770636178,-500.0,0.00033149,7]
[361764358,1747770636187,-500.0,0.00033149,7]
[361764360,1747770636197,-500.0,0.00033149,7]
[361764362,1747770636206,-500.0,0.00033149,7]
[361764364,1747770636217,-500.0,0.00033149,7]
[361764366,1747770636226,-500.0,0.00033149,7]
[361764368,1747770636236,-396.34652875,0.00033149,7]
[361764370,1747770636245,-500.0,0.00033149,7]
[361764372,1747770636256,-500.0,0.00033149,7]
[361764374,1747770636265,-526.13252968,0.00033149,5]
[361764376,1747770636275,-500.0,0.00033149,7]
[361764378,1747770636284,-500.0,0.00033149,7]
[361764380,1747770636295,-500.0,0.00033149,7]
[361764382,1747770636304,-500.0,0.00033149,7]
[361764384,1747770636313,-500.0,0.00033149,7]
[361764387,1747770636335,-648.06750112,0.00033149,7]
[361764389,1747770636348,-500.0,0.00033149,7]
[361764391,1747770636358,-500.0,0.00033149,7]
[361764393,1747770636369,-500.0,0.00033149,7]
[361764395,1747770636379,-500.0,0.00033149,7]
[361764397,1747770636390,-500.0,0.00033149,7]
[361764399,1747770636405,-500.0,0.00033149,7]
[361764402,1747770636415,-500.0,0.00033149,7]
[361764404,1747770636426,-500.0,0.00033149,7]
[361764406,1747770636437,-500.0,0.00033149,7]
[361764408,1747770636447,-500.0,0.00033149,7]
[361764410,1747770636457,-500.0,0.00033149,7]
[361764412,1747770636467,-500.0,0.00033149,7]
[361764414,1747770636478,-420.0,0.00033149,5]
[361764416,1747770636488,-420.0,0.00033149,5]
[361764418,1747770636498,-420.0,0.00033149,5]
[361764420,1747770636508,-420.0,0.00033149,5]
[361764422,1747770636518,-548.57,0.00033149,5]
[361764424,1747770636528,-500.0,0.00033149,5]
[361764427,1747770636538,-1045.05,0.00033149,5]
[361764429,1747770636548,-420.0,0.00033149,5]
[361764431,1747770636558,-170.76398457,0.00033149,5]
[361764433,1747770636568,-420.0,0.00033149,5]
[361764435,1747770636579,-420.0,0.00033149,5]
[361764437,1747770636593,-420.0,0.00033149,5]
[361764439,1747770636604,-499.99999999,0.00033149,7]
[361764441,1747770636615,-420.0,0.00033149,5]
[361764443,1747770636626,-420.0,0.00033149,5]
[361764445,1747770636635,-420.0,0.00033149,5]
[361764447,1747770636644,-420.0,0.00033149,5]
[361764449,1747770636654,-864.78,0.00033149,5]
[361764451,1747770636665,-420.0,0.00033149,5]
[361764453,1747770636674,-302.97821018,0.00033149,5]
[361764456,1747770636685,-420.0,0.00033149,5]
[361764458,1747770636695,-420.0,0.00033149,5]
[361764460,1747770636705,-420.0,0.00033149,5]
[361764462,1747770636715,-1016.73,0.00033149,5]
[361764464,1747770636725,-420.0,0.00033149,5]
[361764466,1747770636735,-420.0,0.00033149,5]
[361764468,1747770636745,-420.0,0.00033149,5]
[361764470,1747770636755,-420.0,0.00033149,5]
[361764472,1747770636765,-420.0,0.00033149,5]
[361764475,1747770636783,-480.23,0.00033149,5]
[361764477,1747770636793,-420.0,0.00033149,5]
[361764479,1747770636804,-420.0,0.00033149,5]
[361764481,1747770636815,-420.0,0.00033149,5]
[361764484,1747770636828,-420.0,0.00033149,5]
[361764486,1747770636839,-420.0,0.00033149,5]
[361764488,1747770636850,-400.0,0.00033149,5]
[361764490,1747770636860,-420.0,0.00033149,5]
[361764492,1747770636869,-420.0,0.00033149,5]
[361764494,1747770636879,-420.0,0.00033149,5]
[361764496,1747770636890,-553.25,0.00033149,5]
[361764498,1747770636899,-4580.72,0.00033149,5]
[361764500,1747770636909,-562.79,0.00033149,5]
[361764502,1747770636920,-420.0,0.00033149,5]
[361764504,1747770636930,-420.0,0.00033149,5]
[361764506,1747770636941,-1198.5,0.00033149,5]
[361764508,1747770636952,-420.0,0.00033149,5]
[361764510,1747770636962,-420.0,0.00033149,5]
[361764512,1747770636972,-420.0,0.00033149,5]
[361764515,1747770636983,-1284.31,0.00033149,5]
[361764517,1747770636993,-1628.89,0.00033149,5]
[361764519,1747770637004,-461.33,0.00033149,5]
[361764521,1747770637014,-2757.12,0.00033149,5]
[361764523,1747770637024,-1174.3,0.00033149,5]
[361764525,1747770637035,-420.0,0.00033149,5]
[361764527,1747770637045,-420.0,0.00033149,5]
[361764529,1747770637055,-1194.2,0.00033149,5]
[361764531,1747770637064,-420.0,0.00033149,5]
[361764533,1747770637076,-319.04275167,0.00033149,5]
[361764535,1747770637086,-420.0,0.00033149,5]
[361764538,1747770637096,-420.0,0.00033149,5]
[361764540,1747770637105,-1529.58,0.00033149,5]
[361764542,1747770637115,-500.0,0.00033149,5]
[361764544,1747770637125,-1905.53,0.00033149,5]
[361764545,1747770637135,-420.0,0.00033149,5]
[361764546,1747770637145,-420.0,0.00033149,5]
[361764547,1747770637155,-420.0,0.00033149,5]
[361764548,1747770637165,-420.0,0.00033149,5]
[361764549,1747770637175,-420.0,0.00033149,5]
[361764550,1747770637185,-5678.31,0.00033149,5]
[361764551,1747770637195,-420.0,0.00033149,5]
[361764552,1747770637206,-420.0,0.00033149,5]
[361764553,1747770637224,-420.0,0.00033149,5]
[361764555,1747770637235,-564.2,0.00033149,5]
[361764557,1747770637245,-3492.25,0.00033149,5]
[361764559,1747770637256,-420.0,0.00033149,5]
[361764561,1747770637268,-930.86,0.00033149,5]
[361764563,1747770637279,-420.0,0.00033149,5]
[361764565,1747770637290,-531.76,0.00033149,5]
[361764567,1747770637301,-1131.35,0.00033149,5]
[361764569,1747770637311,-400.0,0.00033149,5]
[361764572,1747770637323,-2175.78,0.00033149,5]
[361764574,1747770637334,-420.0,0.00033149,5]
[361764576,1747770637345,-420.0,0.00033149,5]
[361764578,1747770637355,-420.0,0.00033149,5]
[361764580,1747770637365,-420.0,0.00033149,5]
[361764582,1747770637376,-420.0,0.00033149,5]
[361764584,1747770637386,-2350.59,0.00033149,5]
[361764586,1747770637397,-420.0,0.00033149,5]
[361764588,1747770637407,-420.0,0.00033149,5]
[361764590,1747770637418,-530.76,0.00033149,5]
[361764592,1747770637428,-420.0,0.00033149,5]
[361764594,1747770637439,-1838.89,0.00033149,5]
[361764596,1747770637450,-882.23,0.00033149,5]
[361764598,1747770637460,-420.0,0.00033149,5]
[361764601,1747770637471,-420.0,0.00033149,5]
[361764603,1747770637481,-420.0,0.00033149,5]
[361764605,1747770637492,-500.0,0.00033149,7]
[361764606,1747770637502,-150.0,0.00033149,2]
[361764607,1747770637514,-420.0,0.00033149,5]
[361764608,1747770637524,-2096.04,0.00033149,5]
[361764609,1747770637535,-420.0,0.00033149,5]
[361764610,1747770637546,-420.0,0.00033149,5]
[361764611,1747770637557,-760.22,0.00033149,5]
[361764612,1747770637567,-420.0,0.00033149,5]
[361764613,1747770637586,-1062.74,0.00033149,5]
[361764614,1747770637596,-420.0,0.00033149,5]
[361764615,1747770637607,-420.0,0.00033149,5]
[361764616,1747770637617,-420.0,0.00033149,5]
[361764617,1747770637630,-400.0,0.00033149,5]
[361764618,1747770637640,-3031.91,0.00033149,2]
[361764619,1747770637651,-420.0,0.00033149,5]
[361764620,1747770637664,-1694.6,0.00033149,5]
[361764621,1747770637680,-610.65,0.00033149,5]
[361764622,1747770637691,-420.0,0.00033149,5]
[361764623,1747770637702,-420.0,0.00033149,5]
[361764624,1747770637713,-658.13,0.00033149,5]
[361764625,1747770637725,-420.0,0.00033149,5]
[361764626,1747770637736,-400.0,0.00033149,5]
[361764627,1747770637747,-1613.12,0.00033149,5]
[361764628,1747770637758,-420.0,0.00033149,5]
[361764629,1747770637769,-490.65,0.00033149,5]
[361764630,1747770637779,-616.07,0.00033149,5]
[361764631,1747770637790,-420.0,0.00033149,5]
[361764632,1747770637801,-500.0,0.00033149,5]
[361764633,1747770637813,-462.17,0.00033149,5]
[361764634,1747770637824,-420.0,0.00033149,5]
[361764635,1747770637834,-5148.97,0.00033149,5]
[361764636,1747770637845,-677.62,0.00033149,5]
[361764637,1747770637857,-420.0,0.00033149,5]
[361764638,1747770637867,-420.0,0.00033149,5]
[361764639,1747770637879,-884.72,0.00033149,5]
[361764640,1747770637889,-420.0,0.00033149,5]
[361764641,1747770637900,-942.51,0.00033149,5]
[361764642,1747770637910,-1960.18,0.00033149,5]
[361764643,1747770637921,-420.0,0.00033149,5]
[361764644,1747770637932,-542.39,0.00033149,5]
[361764645,1747770637942,-13226.17,0.00033149,5]
[361764646,1747770637953,-420.0,0.00033149,5]
[361764647,1747770637964,-1206.22,0.00033149,5]
[361764648,1747770637975,-420.0,0.00033149,5]
[361764649,1747770637986,-420.0,0.00033149,5]
[361764650,1747770637997,-473.04,0.00033149,5]
[361764651,1747770638007,-420.0,0.00033149,5]
[361764653,1747770638018,-420.0,0.00033149,5]
[361764654,1747770638029,-420.0,0.00033149,5]
[361764655,1747770638039,-420.0,0.00033149,5]
[361764656,1747770638050,-1007.42,0.00033149,5]
[361764657,1747770638062,-1419.41,0.00033149,5]
[361764658,1747770638073,-420.0,0.00033149,5]
[361764659,1747770638085,-605.81,0.00033149,5]
[361764660,1747770638105,-2000.0,0.00033149,30]
[361764661,1747770638121,-599.92,0.00033149,5]
[361764662,1747770638133,-2783.57,0.00033149,5]
[361764663,1747770638146,-420.0,0.00033149,5]
[361764664,1747770638159,-300.0,0.0003315,7]
[361764665,1747770638171,-483.26,0.0003315,5]
[361764666,1747770638183,-420.0,0.0003315,5]
[361764667,1747770638194,-1317.04,0.0003315,5]
[361764668,1747770638205,-420.0,0.0003315,5]